{"text_format":"3","workbook":"xlsx","n_sheets":3,"sheets":["评分表 ","评分表  (2)","Sheet1"],"not_rendered":{"defined_names":2},"read":"whole","date_system":"1900"}

{"sheet":"评分表 ","index":0,"n_rows":10,"n_cols":5,"rows_kept":10,"merged":[[0,0,0,1],[0,2,0,4],[1,0,1,4],[2,0,3,0],[2,1,3,1],[2,2,3,2],[2,3,3,3],[2,4,3,4],[4,1,6,1],[9,0,9,2]]}
["评选部门："]
["茂名滨海新区东华能源碳纤维项目安装自来水管道项目施工代理服务机构遴选综合评分表"]
["序号","评审\n分类","评审项目","分值","评分标准"]
[]
[1,"商务部分（50分）","企业业绩",30,"2021年1月1日至递交响应文件截止之日止完成同类型招标代理项目的，每提供一项得2分，最高得30分。注：时间以招标代理合同签订时间为准，须同时提供招标代理合同复印件和中标通知书复印件，并加盖响应供应商公章，不提供不得分。"]
[2,null,"团队实力",10,"具备中级及以上职称的，每提供一人得2分，最高得10分，无不得分。 注：1.须提供相关人员证书复印件，并加盖响应供应商公章，不提供不得分。 2.如响应供应商成立时间不足1个月，可不提供社保证明复印件，但需提供专业人员属于本供应商人员的有效证明；如响应供应商成立时间大于1个月且不足3个月的，提供1个月的社保证明复印件；并加盖响应供应商公章，不提供不得分。"]
[3,null,"服务便利性",10,"1.根据项目需要，提出高效、优质的服务便利性方案，得10分； 2.根据项目需要，提出较高效、可行的服务便利性方案，得7分； 3.根据项目需要，提出基本可行的服务便利性方案，得4分； 4.提出的服务便利性方案不满足项目需要，得1分； 5.未提供的，得0分。"]
[4,"技术部分\n（30分）","服务目标",30,"1.理解项目需求，能对需求提出工作目标，完全满足项目需要，得30分； 2.理解项目需求，能对需求提出工作目标，较满足项目需要，得20分； 3.理解项目需求，能对需求提出工作目标，符合项目需要，得10分； 4.不理解项目需求，提出的工作目标不满足项目需要，得1分； 5.未提供的，得0分。"]
[5,"报价部分\n（20分）","投标报价",20,"投标报价得分＝（评标基准价/投标报价）×价格权值×100（注：投标价格最高的投标报价为评标基准价。）最高报价不是中标的唯一依据。【注：“XXXX”报价最高（相当于投标价格最低）的为评标基准价。如：投标报价XXXX 60%为报价最高，评标基准价为1-60%=40%，得满分 20分；有投标报价为50%，投标报价为1-50%=50%；以此类推。】"]
["总分",null,null,{"$f":"SUM(D5:D9)","v":100}]

{"sheet":"评分表  (2)","index":1,"n_rows":10,"n_cols":10,"rows_kept":10,"merged":[[0,0,0,1],[0,2,0,4],[1,0,1,9],[2,0,3,0],[2,1,3,1],[2,2,3,2],[2,3,3,3],[2,4,3,4],[2,5,2,9],[4,1,6,1],[9,0,9,2]]}
["评选部门："]
["东湾绿城棚户区改造项目供水管建设工程招标代理服务机构遴选综合评分表"]
["序号","评审\n分类","评审项目","分值","评分标准","投标单位"]
[{"$nulls":5},"广东红盛工程管理有限公司","广东开诚工程管理有限公司","龙腾国信工程咨询有限公司","中丞项目管理（茂名）有限公司","中乾工程勘察设计(集团)有限公司"]
[1,"商务部分（50分）","企业业绩",30,"2021年1月1日至递交响应文件截止之日止完成同类型招标代理项目的，每提供一项得2分，最高得30分。注：时间以招标代理合同签订时间为准，须同时提供招标代理合同复印件和中标通知书复印件，并加盖响应供应商公章，不提供不得分。",26,30,30,12,0]
[2,null,"团队实力",10,"具备中级及以上职称的，每提供一人得2分，最高得10分，无不得分。 注：1.须提供相关人员证书复印件，并加盖响应供应商公章，不提供不得分。 2.如响应供应商成立时间不足1个月，可不提供社保证明复印件，但需提供专业人员属于本供应商人员的有效证明；如响应供应商成立时间大于1个月且不足3个月的，提供1个月的社保证明复印件；并加盖响应供应商公章，不提供不得分。",2,2,10,2,0]
[3,null,"服务便利性",10,"1.根据项目需要，提出高效、优质的服务便利性方案，得10分； 2.根据项目需要，提出较高效、可行的服务便利性方案，得7分； 3.根据项目需要，提出基本可行的服务便利性方案，得4分； 4.提出的服务便利性方案不满足项目需要，得1分； 5.未提供的，得0分。",8.8,9.4,10,7.6,5.2]
[4,"技术部分\n（30分）","服务目标",30,"1.理解项目需求，能对需求提出工作目标，完全满足项目需要，得30分； 2.理解项目需求，能对需求提出工作目标，较满足项目需要，得20分； 3.理解项目需求，能对需求提出工作目标，符合项目需要，得10分； 4.不理解项目需求，提出的工作目标不满足项目需要，得1分； 5.未提供的，得0分。",20,24,24,20,4]
[5,"报价部分\n（20分）","投标报价",20,"投标报价得分＝（评标基准价/投标报价）×价格权值×100（注：投标价格最高的投标报价为评标基准价。）最高报价不是中标的唯一依据。【注：“XXXX”报价最高（相当于投标价格最低）的为评标基准价。如：投标报价XXXX 60%为报价最高，评标基准价为1-60%=40%，得满分 20分；有投标报价为50%，投标报价为1-50%=50%；以此类推。】",19.4,19.49,20,19.49,19.47]
["总分",null,null,{"$f":"SUM(D5:D9)","v":100},null,76.2,84.89,94,61.09,28.67]

{"sheet":"Sheet1","index":2,"n_rows":24,"n_cols":11,"rows_kept":24}
[7,10,10,7,4]
[20,20,20,20,10]
[]
[7,10,10,7,4]
[20,30,30,20,1]
[]
[10,10,10,10,7]
[20,20,20,20,7]
[]
[10,10,10,7,4]
[20,30,20,20,1]
[]
[10,7,10,7,7]
[20,20,30,20,1]
[]
[]
[]
[7,10,10,7,4,null,20,20,20,20,10]
[7,10,10,7,4,null,20,30,30,20,1]
[10,10,10,10,7,null,20,20,20,20,7]
[10,10,10,7,4,null,20,30,20,20,1]
[10,7,10,7,7,null,20,20,30,20,1]
[{"$f":"SUM(A18:A22)","v":44},{"$f":"SUM(B18:B22)","v":47},50,38,26,null,100,120,120,100,20]
[{"$f":"A23/5","v":8.8},{"$f":"B23/5","v":9.4},10,7.6,5.2,null,20,24,24,20,4]